bitfinex-derivatives/quotes_SOLF0:USTF0_20220106
["timestamp","ask_amount","ask_price","bid_price","bid_amount"]
[1641475853166,14.01760921,149.22,149.17,1.436986]
[1641475853766,20.92460921,149.22,149.17,1.436986]
[1641475854669,3.30066048,149.21,149.17,1.436986]
[1641475855270,17.31826969,149.23,149.17,1.436986]
[1641475856874,4.0,149.21,149.17,1.436986]
[1641475857073,10.125,149.21,149.17,22.63911262]
[1641475857475,16.82404539,149.21,149.17,22.63911262]
[1641475857673,16.82404539,149.21,149.17,15.6477141]
[1641475857874,14.01760921,149.19,149.15,1.436986]
[1641475858273,4.0,149.17,149.15,1.436986]
[1641475858475,10.151,149.17,149.15,1.436986]
[1641475858774,6.151,149.17,149.12,14.2107281]
[1641475858975,6.151,149.17,149.13,14.2107281]
[1641475859876,31.66479,149.16,149.13,2.81e-05]
[1641475860077,27.66479,149.16,149.13,2.81e-05]
[1641475860280,31.66479,149.16,149.1,2.81e-05]
[1641475861279,31.66479,149.16,149.08,6.98909715]
[1641475862281,4.0,149.14,149.08,6.98909715]
[1641475862479,10.094,149.14,149.08,6.98909715]
[1641475862683,4.0,149.13,149.08,6.98909715]
[1641475863282,10.094,149.14,149.08,6.98909715]
[1641475863683,4.0,149.1,149.08,6.98909715]
[1641475863880,6.334,149.1,149.06,6.98909715]
[1641475865782,27.66479,149.13,149.06,6.98909715]
[1641475866382,31.66479,149.13,149.06,6.98909715]
[1641475866584,6.70331144,149.12,149.06,6.98909715]
[1641475866883,12.51231144,149.12,149.06,6.98909715]
[1641475867084,16.51231144,149.12,149.05,27.66479]
[1641475867982,28.48071739,149.12,149.05,27.66479]
[1641475868183,24.48071739,149.12,149.05,27.66479]
[1641475869383,17.77740595,149.12,149.05,27.66479]
[1641475869784,5.809,149.12,149.05,27.66479]
[1641475869983,27.66479,149.13,149.06,6.98923235]
[1641475870583,31.66479,149.13,149.06,6.98923235]
[1641475870783,27.66479,149.13,149.06,6.98923235]
[1641475870984,31.66479,149.13,149.06,6.98923235]
[1641475872586,4.0,149.13,149.06,6.98923235]
[1641475872786,4.0,149.12,149.06,6.98923235]
[1641475872988,5.263,149.12,149.06,6.98923235]
[1641475873487,5.263,149.12,149.04,6.98923235]
[1641475874889,5.263,149.12,149.05,27.66479]
[1641475875792,5.263,149.12,149.06,6.98923235]
[1641475877696,9.263,149.12,149.06,6.98923235]
[1641475878099,10.70421024,149.1,149.06,6.98923235]
[1641475878298,6.70555891,149.07,149.04,6.98923235]
[1641475878496,13.33455891,149.07,149.04,6.98923235]
[1641475878897,31.66479,149.05,149.04,6.98923235]
[1641475879097,31.66479,149.05,149.01,37.885208]
[1641475879297,31.66479,149.05,149.0,6.98940363]
[1641475879298,4.0,149.04,149.0,6.98940363]
[1641475879498,6.503,149.04,149.0,6.98940363]
[1641475880500,6.503,149.04,148.99,37.885208]
[1641475880701,6.503,149.04,148.96,59.26351605]
[1641475881904,13.20990812,149.04,148.96,59.26351605]
[1641475882104,4.0,149.02,148.96,59.26351605]
[1641475882706,13.20990812,149.04,148.96,63.26351605]
[1641475882905,27.66479,149.05,148.99,27.66479]
[1641475883305,27.66479,149.05,148.96,63.26351605]
[1641475883706,6.70533409,149.07,148.96,63.26351605]
[1641475883907,37.885208,149.11,148.99,4.0]
[1641475884106,37.885208,149.11,149.03,4.0]
[1641475884308,37.885208,149.11,149.05,4.0]
[1641475884507,37.885208,149.11,149.06,4.0]
[1641475884707,37.885208,149.11,149.06,5.702]
[1641475884908,37.885208,149.11,149.1,4.73910309]
[1641475885213,4.0,149.12,149.1,0.00950309]
[1641475885407,6.70263749,149.13,149.1,0.00950309]
[1641475886207,6.70353612,149.11,149.03,27.66479]
[1641475886607,6.716,149.13,149.03,27.66479]
[1641475887007,27.66479,149.1,149.03,27.66479]
[1641475887208,33.89579,149.1,149.03,27.66479]
[1641475888111,33.89579,149.1,149.03,65.549998]
[1641475890118,6.231,149.1,149.03,37.885208]
[1641475890618,6.231,149.1,149.01,15.41830805]
[1641475890619,6.231,149.1,149.06,14.22078451]
[1641475891919,33.89579,149.1,149.07,14.22078451]
[1641475892321,37.89579,149.1,149.07,14.22078451]
[1641475892520,4.0,149.09,149.05,14.22093242]
[1641475892722,33.89579,149.1,149.05,14.22093242]
[1641475892922,4.0,149.09,149.05,14.22093242]
[1641475893123,37.89579,149.1,149.05,14.22093242]
[1641475893324,6.70533409,149.07,148.99,37.885208]
[1641475893523,13.40733409,149.07,148.99,37.885208]
[1641475894022,27.66479,149.06,148.99,37.885208]
[1641475895025,27.66479,149.06,148.98,49.30351605]
[1641475896426,4.0,149.04,148.98,49.30351605]
[1641475896626,5.065,149.04,148.98,49.30351605]
[1641475896827,15.77190812,149.04,148.98,49.30351605]
[1641475897126,4.0,149.01,148.98,49.30351605]
[1641475897326,10.92,149.01,148.96,37.885208]
[1641475897527,6.92,149.01,148.96,37.885208]
[1641475898225,27.66479,148.98,148.96,37.885208]
[1641475898429,34.64179,148.98,148.96,37.885208]
[1641475898625,34.64179,148.98,148.94,37.885208]
[1641475899827,34.64179,148.98,148.93,11.41836481]
[1641475899828,34.64179,148.98,148.93,37.885208]
[1641475901030,34.64179,148.98,148.92,37.885208]
[1641475902130,27.66479,148.95,148.92,37.885208]
[1641475902330,34.82979,148.95,148.92,37.885208]
[1641475903733,38.82979,148.95,148.92,37.885208]
[1641475903935,34.82979,148.95,148.92,37.885208]
[1641475904233,27.66479,148.93,148.89,37.885208]
[1641475905434,27.66479,148.95,148.89,41.885208]
[1641475905634,77.6358,149.03,148.89,41.885208]
[1641475905834,84.34315797,149.03,148.89,41.885208]
[1641475906035,27.66479,148.99,148.91,37.885208]
[1641475906236,32.87579,148.99,148.91,37.885208]
[1641475906835,32.87579,148.99,148.89,1.43461532]
[1641475907836,3.3112228,148.98,148.9,37.885208]
[1641475909038,7.3112228,148.98,148.9,37.885208]
[1641475909237,4.0,148.98,148.91,37.885208]
[1641475909437,32.87579,148.99,148.91,37.885208]
[1641475909637,6.70983326,148.97,148.91,37.885208]
[1641475910137,27.66479,148.95,148.9,37.885208]
[1641475910339,32.78479,148.95,148.9,37.885208]
[1641475910938,32.78479,148.95,148.89,37.885208]
[1641475912740,6.70983326,148.97,148.89,37.885208]
[1641475912741,27.66479,148.99,148.9,4.0]
[1641475912941,27.66479,148.99,148.9,8.613]
[1641475913142,27.66479,148.99,148.9,4.613]
[1641475913341,3.3115024,148.98,148.91,1.43461532]
[1641475914147,6.335,148.98,148.92,37.885208]
[1641475914745,10.335,148.98,148.92,37.885208]
[1641475914945,6.70983326,148.97,148.92,37.885208]
[1641475915345,6.70983326,148.97,148.91,57.71976851]
[1641475915947,6.70983326,148.97,148.91,8.41896064]
[1641475917146,4.0,148.94,148.91,8.41896064]
[1641475917349,10.842,148.94,148.91,8.41896064]
[1641475917547,6.842,148.94,148.91,8.41896064]
[1641475917747,6.842,148.94,148.89,8.41896064]
[1641475919349,4.0,148.9,148.83,56.88636183]
[1641475919547,4.0,148.85,148.83,30.88636183]
[1641475919747,4.0,148.84,148.7,129.4357]
[1641475919948,4.0,148.79,148.7,129.4357]
[1641475920149,66.45058,148.79,148.78,93.76713773]
[1641475920751,66.45058,148.79,148.7,133.4357]
[1641475920951,62.45058,148.79,148.71,11.40131042]
[1641475921650,62.45058,148.79,148.74,4.0]
[1641475921851,34.78579,148.79,148.72,4.0]
[1641475922050,34.78579,148.79,148.71,15.40131042]
[1641475922251,34.78579,148.79,148.72,27.66479]
[1641475922650,34.78579,148.79,148.74,4.0]
[1641475922850,34.78579,148.79,148.72,31.66479]
[1641475923050,34.78579,148.79,148.78,14.24659951]
[1641475925553,34.78579,148.79,148.71,11.40131042]
[1641475925753,41.50396266,148.79,148.71,11.40131042]
[1641475926153,41.50396266,148.79,148.75,14.25009983]
[1641475926356,27.66479,148.76,148.75,14.25009983]
[1641475926553,37.35279,148.76,148.67,68.6643]
[1641475926753,4.0,148.73,148.64,27.38194894]
[1641475926956,4.0,148.72,148.64,27.38194894]
[1641475927154,6.72268908,148.69,148.68,11.40131042]
[1641475927353,12.16668908,148.69,148.68,11.40131042]
[1641475928156,12.16668908,148.69,148.6,27.38194894]
[1641475928356,12.16668908,148.69,148.62,27.66479]
[1641475929660,12.16668908,148.69,148.64,4.0]
[1641475929860,5.444,148.69,148.62,31.66479]
[1641475930059,27.66479,148.7,148.63,4.0]
[1641475930260,27.66479,148.7,148.62,31.66479]
[1641475930461,33.81279,148.7,148.62,31.66479]
[1641475930661,33.81279,148.7,148.64,4.0]
[1641475931062,33.81279,148.7,148.63,4.0]
[1641475931361,33.81279,148.7,148.62,84.68586494]
[1641475931561,33.81279,148.7,148.62,88.68586494]
[1641475931761,33.81279,148.7,148.62,84.68586494]
[1641475932163,37.81279,148.7,148.62,84.68586494]
[1641475932364,33.81279,148.7,148.62,84.68586494]
[1641475932563,33.81279,148.7,148.61,11.40131042]
[1641475932963,44.53502716,148.7,148.61,11.40131042]
[1641475933364,44.53502716,148.7,148.6,11.40131042]
[1641475933562,4.0,148.68,148.6,11.40131042]
[1641475933962,4.0,148.67,148.6,11.40131042]
[1641475934163,4.0,148.66,148.6,11.40131042]
[1641475934363,27.66479,148.64,148.6,11.40131042]
[1641475934664,32.71179,148.64,148.6,11.40131042]
[1641475936065,6.7251757,148.63,148.6,11.40131042]
[1641475936367,6.7251757,148.63,148.55,82.83792343]
[1641475936368,10.7251757,148.63,148.56,11.40131042]
[1641475936565,6.7251757,148.63,148.56,11.40131042]
[1641475937566,6.7251757,148.63,148.59,4.0]
[1641475937767,6.72336706,148.67,148.57,10.595]
[1641475938366,27.66479,148.65,148.57,10.595]
[1641475938669,27.66479,148.65,148.57,67.61607494]
[1641475938867,4.0,148.64,148.57,57.02107494]
[1641475939067,6.7251757,148.63,148.57,57.02107494]
[1641475939567,6.7251757,148.63,148.56,57.02107494]
[1641475940368,27.66479,148.61,148.59,38.02923368]
[1641475940567,34.01779,148.61,148.59,38.02923368]
[1641475941168,34.01779,148.61,148.58,38.02923368]
[1641475942369,34.01779,148.61,148.59,38.02923368]
[1641475942667,27.66479,148.61,148.59,38.02923368]
[1641475943468,4.0,148.74,148.6,4.0]
[1641475943668,6.72223716,148.7,148.62,4.0]
[1641475943869,6.72223716,148.7,148.62,6.439]
[1641475944871,6.72223716,148.7,148.63,38.02923368]
[1641475945070,4.0,148.68,148.63,38.02923368]
[1641475945272,4.0,148.67,148.63,38.02923368]
[1641475945470,10.72336706,148.67,148.63,38.02923368]
[1641475945670,6.72336706,148.67,148.63,38.02923368]
[1641475945870,4.0,148.66,148.61,6.96589487]
[1641475946070,5.898,148.66,148.61,6.96589487]
[1641475946473,27.66479,148.64,148.61,6.96589487]
[1641475946671,27.66479,148.64,148.59,38.02923368]
[1641475947476,32.41787128,148.64,148.59,38.02923368]
[1641475947674,32.41787128,148.64,148.57,38.02923368]
[1641475951275,4.75308128,148.64,148.57,38.02923368]
[1641475951475,10.72562801,148.62,148.57,38.02923368]
[1641475951675,15.94462801,148.62,148.57,38.02923368]
[1641475951974,15.94462801,148.62,148.56,18.36769927]
[1641475951975,15.94462801,148.62,148.56,56.39693295]
[1641475952174,4.0,148.61,148.56,56.39693295]
[1641475952375,4.0,148.59,148.56,56.39693295]
[1641475952577,5.376,148.59,148.56,6.96589487]
[1641475952976,4.0,148.57,148.56,6.96589487]
[1641475953276,4.0,148.58,148.55,38.02923368]
[1641475953476,4.0,148.58,148.54,38.02923368]
[1641475954078,12.10321157,148.59,148.54,38.02923368]
[1641475954279,16.85629285,148.59,148.52,38.02923368]
[1641475954679,4.0,148.58,148.52,38.02923368]
[1641475954979,20.85629285,148.59,148.52,38.02923368]
[1641475955180,16.85629285,148.59,148.52,38.02923368]
[1641475955681,20.85629285,148.59,148.52,38.02923368]
[1641475955880,12.10321157,148.59,148.54,38.02923368]
[1641475956481,12.10321157,148.59,148.55,38.02923368]
[1641475957483,27.66479,148.6,148.55,38.02923368]
[1641475958383,27.66479,148.6,148.57,38.02923368]
[1641475962387,27.66479,148.6,148.57,39.45251195]
[1641475963289,27.66479,148.6,148.57,1.42327827]
[1641475963490,6.72562801,148.62,148.57,1.42327827]
[1641475963991,6.72562801,148.62,148.6,14.26210506]
[1641475966595,31.66479,148.64,148.6,14.26210506]
[1641475966795,36.41876312,148.64,148.6,14.26210506]
[1641475967597,6.7251757,148.63,148.6,14.26210506]
[1641475969499,11.47914882,148.63,148.6,14.26210506]
[1641475970301,6.7251757,148.63,148.62,4.74352852]
[1641475972605,27.66479,148.64,148.62,4.74352852]
[1641475972802,32.41876312,148.65,148.62,4.74352852]
[1641475972803,4.75397312,148.65,148.63,4.0]
[1641475973002,14.26179097,148.68,148.63,4.0]
[1641475973204,9.097e-05,148.68,148.64,4.0]
[1641475973401,9.097e-05,148.68,148.62,33.95679]
[1641475973602,9.097e-05,148.7,148.62,33.95679]
[1641475973804,9.097e-05,148.7,148.63,4.0]
[1641475974402,9.097e-05,148.7,148.62,37.95679]
[1641475974602,4.0,148.7,148.64,1.42327827]
[1641475974802,4.0,148.69,148.64,1.42327827]
[1641475975003,6.595,148.69,148.61,11.40293344]
[1641475975201,6.595,148.69,148.53,104.92076602]
[1641475975202,10.72653281,148.62,148.53,95.04076602]
[1641475975405,12.31553281,148.62,148.53,95.04076602]
[1641475975602,12.31553281,148.62,148.57,61.02107494]
[1641475975804,12.31553281,148.62,148.6,4.0]
[1641475976003,5.589,148.62,148.6,4.0]
[1641475976202,5.589,148.62,148.61,4.0]
[1641475976404,6.72381913,148.66,148.61,4.0]
[1641475976703,6.72381913,148.66,148.55,4.0]
[1641475976904,13.22381913,148.66,148.55,4.0]
[1641475977104,13.22381913,148.66,148.57,4.0]
[1641475977304,27.66479,148.62,148.58,4.0]
[1641475977505,27.66479,148.62,148.58,5.571]
[1641475978504,27.66479,148.62,148.57,4.0]
[1641475978905,27.66479,148.62,148.56,4.0]
[1641475979304,27.66479,148.62,148.54,31.66479]
[1641475979505,27.66479,148.62,148.54,27.66479]
[1641475980510,27.66479,148.62,148.55,4.0]
[1641475980915,27.66479,148.62,148.54,31.46841119]
[1641475981111,27.66479,148.62,148.55,4.0]
[1641475981311,6.72381913,148.66,148.54,64.16220119]
[1641475981710,6.72381913,148.66,148.57,4.0]
[1641475981912,6.72381913,148.66,148.58,4.0]
[1641475982113,6.72381913,148.66,148.59,4.0]
[1641475982412,27.66479,148.69,148.61,4.0]
[1641475982615,27.66479,148.69,148.61,10.402]
[1641475982814,27.66479,148.69,148.62,4.0]
[1641475983518,27.66479,148.69,148.63,4.0]
[1641475983716,6.72020429,148.74,148.61,38.06679]
[1641475983917,6.71749572,148.8,148.68,4.0]
[1641475984116,6.71749572,148.8,148.68,7.134]
[1641475984517,6.71884973,148.77,148.68,7.134]
[1641475984716,6.71952695,148.76,148.68,7.134]
[1641475984916,6.71952695,148.76,148.69,4.0]
[1641475985116,63.73902194,148.79,148.68,7.134]
[1641475985519,27.66479,148.77,148.69,27.66479]
[1641475985917,91.40381194,148.79,148.69,31.66479]
[1641475986316,84.68586494,148.79,148.69,31.66479]
[1641475986517,27.66479,148.79,148.69,31.66479]
[1641475986817,27.66479,148.79,148.7,4.0]
[1641475987217,27.66479,148.79,148.69,27.66479]
[1641475988217,27.66479,148.79,148.69,31.66479]
[1641475988417,27.66479,148.79,148.69,27.66479]
[1641475989317,27.66479,148.79,148.69,31.66479]
[1641475989517,27.66479,148.79,148.72,27.66479]
[1641475990919,27.66479,148.79,148.69,27.66479]
[1641475991118,6.71839833,148.78,148.69,27.66479]
[1641475991521,12.90039833,148.78,148.69,27.66479]
[1641475991720,6.182,148.78,148.69,27.66479]
[1641475991923,6.71907546,148.77,148.69,27.66479]
[1641475993926,6.7172701,148.81,148.72,4.0]
[1641475994124,6.7172701,148.81,148.72,4.918]
[1641475994927,6.71839833,148.78,148.72,4.918]
[1641475995127,6.71839833,148.78,148.69,27.66479]
[1641475997525,6.71930119,148.76,148.68,63.9775]
[1641476003937,14.25553591,148.74,148.67,41.92032591]
[1641476004138,18.25553591,148.74,148.67,41.92032591]
[1641476004440,14.25553591,148.74,148.67,41.92032591]
[1641476004639,14.25553591,148.72,148.67,27.66479]
[1641476006839,14.25553591,148.72,148.66,14.25553591]
[1641476007740,14.25553591,148.71,148.65,65.0592]
[1641476007941,14.25553591,148.71,148.64,14.25553591]
[1641476008640,14.25553591,148.73,148.66,14.25553591]
[1641476009340,14.25553591,148.72,148.65,19.13353591]
[1641476009943,14.25553591,148.72,148.67,27.66479]
[1641476011143,14.25553591,148.73,148.67,41.92032591]
[1641476011743,14.25553591,148.73,148.67,27.66479]
[1641476012043,14.25553591,148.73,148.66,14.25553591]
[1641476012445,20.97596602,148.74,148.67,14.25553591]
[1641476013147,14.25553591,148.72,148.65,14.25553591]
[1641476014748,20.97596602,148.74,148.64,21.21341447]
[1641476014948,4.0,148.71,148.64,21.21341447]
[1641476015146,6.855,148.71,148.64,21.21341447]
[1641476015547,6.855,148.71,148.64,1.41675877]
[1641476016550,3.32158143,148.7,148.64,1.41675877]
[1641476017650,7.32158143,148.7,148.64,1.41675877]
[1641476017851,4.0,148.69,148.64,1.41675877]
[1641476018052,4.0,148.65,148.64,1.41675877]
[1641476018251,11.152,148.65,148.62,14.25553591]
[1641476018451,11.152,148.65,148.61,14.25553591]
[1641476018853,4.0,148.62,148.61,14.25553591]
[1641476019053,6.865,148.62,148.58,37.63637251]
[1641476019656,6.865,148.62,148.53,37.63637251]
[1641476020056,6.865,148.62,148.53,65.30116251]
[1641476020956,6.865,148.62,148.54,6.9369533]
[1641476022560,6.72653281,148.6,148.53,6.9369533]
[1641476023460,4.0,148.59,148.53,6.9369533]
[1641476024062,4.0,148.59,148.53,34.6017433]
[1641476024562,6.72653281,148.6,148.53,34.6017433]
[1641476024761,6.72653281,148.6,148.53,43.4627433]
[1641476025063,6.72653281,148.6,148.53,39.4627433]
[1641476025261,6.72653281,148.6,148.54,44.57332581]
[1641476026263,6.72653281,148.6,148.54,48.57332581]
[1641476026463,27.66479,148.64,148.54,48.57332581]
[1641476026663,27.66479,148.64,148.54,52.37694372]
[1641476026863,27.66479,148.64,148.55,37.63637251]
[1641476027163,20.05711517,148.64,148.55,37.63637251]
[1641476027364,20.05711517,148.64,148.58,4.0]
[1641476027565,20.05711517,148.64,148.58,5.552]
[1641476027764,27.66479,148.66,148.58,5.552]
[1641476027964,27.66479,148.66,148.58,33.21679]
[1641476028364,27.66479,148.66,148.58,70.85316251]
[1641476029265,27.66479,148.66,148.59,6.9369533]
[1641476031168,6.72291506,148.68,148.59,6.9369533]
[1641476032068,6.72291506,148.68,148.61,27.66479]
[1641476032269,6.72291506,148.68,148.61,33.85479]
[1641476033068,6.72291506,148.68,148.65,4.7534265]
[1641476033868,6.72291506,148.68,148.66,4.7534265]
[1641476035372,6.72291506,148.68,148.65,4.7534265]
[1641476036273,6.72291506,148.68,148.66,4.7534265]
[1641476037375,6.72291506,148.68,148.63,4.7534265]
[1641476040184,10.72291506,148.68,148.63,4.7534265]
[1641476040785,6.72291506,148.68,148.63,4.7534265]
[1641476041583,6.72291506,148.68,148.62,4.7534265]
[1641476042785,6.72291506,148.68,148.63,4.7534265]
[1641476043485,6.72291506,148.68,148.62,9.4114265]
[1641476043885,10.72291506,148.68,148.62,9.4114265]
[1641476044085,10.72291506,148.68,148.62,4.7534265]
[1641476044285,6.72291506,148.68,148.62,4.7534265]
[1641476044886,6.72291506,148.68,148.63,4.7534265]
[1641476045085,4.0,148.66,148.63,4.7534265]
[1641476045285,9.809,148.66,148.63,4.7534265]
[1641476045885,9.809,148.66,148.61,4.7534265]
[1641476046486,4.0,148.65,148.61,4.7534265]
[1641476046687,37.47379,148.66,148.61,4.7534265]
[1641476047791,4.0,148.65,148.61,4.7534265]
[1641476048090,31.66479,148.66,148.61,4.7534265]
[1641476048490,59.32958,148.66,148.61,4.7534265]
[1641476048692,4.74802718,148.62,148.61,4.7534265]
[1641476049592,4.74802718,148.62,148.6,4.7534265]
[1641476052595,4.74802718,148.61,148.59,4.7534265]
[1641476053197,4.0,148.6,148.59,4.7534265]
[1641476053396,11.42502718,148.61,148.59,4.7534265]
[1641476053605,11.47523875,148.6,148.58,4.7534265]
[1641476053800,4.0,148.59,148.55,14.24430412]
[1641476053996,4.0,148.56,148.55,14.24430412]
[1641476054195,8.448,148.56,148.55,14.24430412]
[1641476054398,8.448,148.56,148.53,4.861]
[1641476054597,4.0,148.54,148.53,0.0001]
[1641476054796,59.32958,148.54,148.52,14.24882239]
[1641476054997,4.0,148.53,148.52,14.24882239]
[1641476055196,9.889,148.53,148.48,37.99685971]
[1641476055396,6.73106048,148.5,148.48,37.99685971]
[1641476055596,13.62506048,148.5,148.48,37.99685971]
[1641476056600,13.62506048,148.5,148.44,57.02107494]
[1641476056801,13.62506048,148.5,148.43,37.99685971]
[1641476057000,4.0,148.48,148.43,37.99685971]
[1641476057600,10.73241997,148.47,148.43,37.99685971]
[1641476057801,13.54841997,148.47,148.42,37.99685971]
[1641476059005,13.54841997,148.47,148.4,8.36014491]
[1641476061406,17.54841997,148.47,148.4,8.36014491]
[1641476061606,6.73400673,148.44,148.4,8.36014491]
[1641476061804,12.10800673,148.44,148.4,8.36014491]
[1641476062607,12.10800673,148.44,148.37,41.99685971]
[1641476062807,6.73400673,148.44,148.38,27.66479]
[1641476063607,6.73400673,148.44,148.39,8.36014491]
[1641476066813,6.73400673,148.44,148.39,12.72614491]
[1641476067710,6.73400673,148.44,148.4,1.41602566]
[1641476068711,6.73400673,148.44,148.39,46.35700462]
[1641476069110,10.73400673,148.44,148.39,46.35700462]
[1641476069512,10.73400673,148.44,148.4,37.99685971]
[1641476070110,10.73400673,148.44,148.39,46.35700462]
[1641476071014,4.0,148.44,148.39,46.35700462]
[1641476071615,4.0,148.44,148.4,37.99685971]
[1641476074418,4.0,148.44,148.39,46.35700462]
[1641476075822,5.523,148.44,148.39,46.35700462]
[1641476076423,5.523,148.44,148.39,8.36014491]
[1641476077024,5.523,148.44,148.39,46.35700462]
[1641476077226,11.33641997,148.47,148.39,46.35700462]
[1641476077524,4.604,148.47,148.41,4.0]
[1641476077824,37.63637251,148.52,148.42,4.0]
[1641476078024,37.63637251,148.52,148.47,4.0]
[1641476078223,37.63637251,148.52,148.47,4.544]
[1641476079326,6.72879588,148.55,148.48,1.41602566]
[1641476079727,10.72879588,148.55,148.48,1.41602566]
[1641476079926,6.73015446,148.52,148.48,1.41602566]
[1641476080127,13.67715446,148.52,148.48,1.41602566]
[1641476080330,13.67715446,148.52,148.45,8.36014491]
[1641476080529,6.73128702,148.5,148.45,8.36014491]
[1641476080929,13.67715446,148.52,148.45,8.36014491]
[1641476081329,6.947,148.52,148.45,8.36014491]
[1641476082830,10.947,148.52,148.45,8.36014491]
[1641476083033,6.947,148.52,148.45,8.36014491]
[1641476083231,66.06267992,148.46,148.45,8.36014491]
[1641476083431,68.50767992,148.46,148.42,37.99685971]
[1641476083631,4.0,148.44,148.42,37.99685971]
[1641476083833,4.0,148.45,148.42,37.99685971]
[1641476084033,4.0,148.45,148.35,49.37758144]
[1641476084435,4.0,148.41,148.35,49.37758144]
[1641476084635,6.586,148.41,148.35,49.37758144]
[1641476085736,6.586,148.41,148.38,14.28433425]
[1641476087343,10.586,148.41,148.38,14.28433425]
[1641476087542,62.06449379,148.42,148.38,14.28433425]
[1641476087941,62.06449379,148.42,148.39,1.0323974]
[1641476088345,62.06449379,148.42,148.37,14.28433425]
[1641476088545,67.66749379,148.42,148.37,14.28433425]
[1641476088743,67.66749379,148.42,148.39,14.28433425]
[1641476089945,62.06449379,148.42,148.39,14.28433425]
[1641476090345,62.06449379,148.42,148.4,1.0323974]
[1641476090545,62.06449379,148.42,148.39,14.28433425]
[1641476090746,62.06449379,148.42,148.39,1.0323974]
[1641476090944,62.06449379,148.42,148.38,14.28433425]
[1641476091147,55.32958,148.42,148.38,14.28433425]
[1641476091546,55.32958,148.42,148.39,14.28433425]
[1641476092146,55.32958,148.42,148.4,1.0323974]
[1641476092549,55.32958,148.42,148.38,14.28433425]
[1641476092848,62.49758,148.42,148.38,14.28433425]
[1641476093148,62.49758,148.42,148.39,14.28433425]
[1641476098353,62.49758,148.42,148.38,14.28433425]
[1641476099652,62.49758,148.42,148.38,15.31673165]
[1641476100256,7.168,148.42,148.38,15.31673165]
[1641476100455,6.73423348,148.43,148.38,15.31673165]
[1641476100957,14.28433425,148.45,148.42,1.0323974]
[1641476101156,14.28433425,148.45,148.44,1.0323974]
[1641476101356,14.28433425,148.45,148.42,4.466]
[1641476101556,14.28433425,148.45,148.43,1.0323974]
[1641476101757,14.28433425,148.45,148.42,4.466]
[1641476101959,27.66479,148.49,148.44,1.0323974]
[1641476102558,27.66479,148.49,148.43,15.31673165]
[1641476102759,27.66479,148.49,148.43,14.28433425]
[1641476103260,2.9676026,148.48,148.42,15.31673165]
[1641476103459,27.66479,148.46,148.42,15.31673165]
[1641476103959,27.66479,148.46,148.42,1.0323974]
[1641476104158,27.66479,148.46,148.41,14.28433425]
[1641476107264,41.94912425,148.46,148.4,1.0323974]
[1641476108368,27.66479,148.46,148.41,14.28433425]
[1641476109268,27.66479,148.46,148.43,1.0323974]
[1641476110270,27.66479,148.46,148.42,14.28433425]
[1641476110971,41.94912425,148.49,148.45,1.0323974]
[1641476111173,41.94912425,148.49,148.44,9.646]
[1641476111371,41.94912425,148.49,148.48,1.0323974]
[1641476111571,41.94912425,148.49,148.48,6.7753974]
[1641476111772,41.94912425,148.49,148.48,5.743]
[1641476112173,41.94912425,148.49,148.48,6.7753974]
[1641476112576,27.66479,148.49,148.48,6.7753974]
[1641476112773,27.66479,148.49,148.48,1.0323974]
[1641476113174,27.66479,148.49,148.45,14.28433425]
[1641476113576,27.66479,148.49,148.46,14.28433425]
[1641476113778,27.66479,148.49,148.48,1.0323974]
[1641476114376,32.42390202,148.49,148.48,1.0323974]
[1641476115377,32.42390202,148.49,148.46,14.28433425]
[1641476115877,4.75911202,148.49,148.46,14.28433425]
[1641476116078,4.75911202,148.5,148.46,14.28433425]
[1641476116278,4.75911202,148.5,148.48,1.0323974]
[1641476116679,4.75911202,148.5,148.46,14.28433425]
[1641476116979,4.75911202,148.5,148.47,14.28433425]
[1641476117379,4.75911202,148.5,148.49,1.0323974]
[1641476117582,14.28433425,148.54,148.49,1.0323974]
[1641476117781,14.28433425,148.54,148.53,1.0323974]
[1641476118780,6.72902227,148.55,148.53,1.0323974]
[1641476118981,14.28433425,148.56,148.54,1.0323974]
[1641476119580,14.28433425,148.57,148.54,1.0323974]
[1641476119982,14.28433425,148.57,148.55,1.0323974]